fUSD/lending_fUSD_20250206
["ID","MTS","AMOUNT","RATE_DAILY","PERIOD"]
[351950721,1738859444661,-1881.95,0.00019178,2]
[351950723,1738859444671,-500.0,0.00019178,2]
[351950726,1738859444682,-500.0,0.00019178,2]
[351950728,1738859444693,-728.45,0.00019178,2]
[351950730,1738859444703,-3100.99,0.00019178,2]
[351950732,1738859444712,-500.0,0.00019178,2]
[351950734,1738859444722,-500.0,0.00019178,2]
[351950736,1738859444732,-1266.32,0.00019178,2]
[351950738,1738859444741,-501.42,0.00019178,2]
[351950740,1738859444751,-976.76,0.00019178,2]
[351950742,1738859444760,-815.33,0.00019178,2]
[351950744,1738859444771,-357.7146739,0.00019178,2]
[351950746,1738859444781,-612.55,0.00019178,2]
[351950748,1738859444791,-261.04758015,0.00019178,2]
[351950750,1738859444800,-504.95141403,0.00019178,2]
[351950752,1738859444810,-500.0,0.00019178,2]
[351950754,1738859444819,-1251.86,0.00019178,2]
[351950756,1738859444831,-805.52,0.00019178,2]
[351950758,1738859444840,-500.0,0.00019178,2]
[351950760,1738859444850,-500.0,0.00019178,2]
[351950762,1738859444860,-500.0,0.00019178,2]
[351950764,1738859444870,-1527.02,0.00019178,2]
[351950766,1738859444881,-500.0,0.00019178,2]
[351950768,1738859444891,-500.0,0.00019178,2]
[351950770,1738859444901,-1214.58,0.00019178,2]
[351950772,1738859444911,-500.0,0.00019178,2]
[351950774,1738859444920,-500.0,0.00019178,2]
[351950776,1738859444931,-618.06796829,0.00019178,2]
[351950779,1738859444941,-725.08,0.00019178,2]
[351950781,1738859444952,-758.66,0.00019178,2]
[351950783,1738859444961,-939.65,0.00019178,2]
[351950784,1738859444971,-633.87,0.00019178,2]
[351950786,1738859444980,-528.24,0.00019178,2]
[351950788,1738859444991,-500.0,0.00019178,2]
[351950790,1738859445001,-704.31,0.00019178,2]
[351950793,1738859445011,-1362.1,0.00019178,2]
[351950794,1738859445021,-601.9,0.00019178,2]
[351950796,1738859445031,-500.0,0.00019178,2]
[351950798,1738859445040,-961.89,0.00019178,2]
[351950800,1738859445050,-536.14328419,0.00019178,2]
[351950802,1738859445060,-1055.11,0.00019178,2]
[351950805,1738859445073,-1033.09,0.00019178,2]
[351950806,1738859445082,-500.0,0.00019178,2]
[351950808,1738859445092,-896.21,0.00019178,2]
[351950810,1738859445102,-500.0,0.00019178,2]
[351950812,1738859445111,-848.6,0.00019178,2]
[351950814,1738859445121,-500.0,0.00019178,2]
[351950816,1738859445131,-957.85,0.00019178,2]
[351950818,1738859445141,-500.0,0.00019178,2]
[351950820,1738859445151,-1133.7,0.00019178,2]
[351950822,1738859445161,-500.0,0.00019178,2]
[351950824,1738859445171,-500.0,0.00019178,2]
[351950826,1738859445180,-500.0,0.00019178,2]
[351950828,1738859445190,-655.65,0.00019178,2]
[351950830,1738859445199,-500.0,0.00019178,2]
[351950832,1738859445209,-1198.99,0.00019178,2]
[351950834,1738859445219,-500.0,0.00019178,2]
[351950836,1738859445228,-1095.89,0.00019178,2]
[351950838,1738859445238,-500.0,0.00019178,2]
[351950840,1738859445247,-733.0,0.00019178,2]
[351950842,1738859445257,-880.56,0.00019178,2]
[351950844,1738859445266,-568.21,0.00019178,2]
[351950846,1738859445275,-500.0,0.00019178,2]
[351950848,1738859445284,-532.28218952,0.00019178,7]
[351950850,1738859445294,-500.0,0.00019178,2]
[351950852,1738859445304,-669.52,0.00019178,2]
[351950854,1738859445313,-500.0,0.00019178,2]
[351950856,1738859445324,-1271.47,0.00019178,2]
[351950858,1738859445334,-500.0,0.00019178,2]
[351950860,1738859445343,-621.18,0.00019178,2]
[351950862,1738859445353,-500.0,0.00019178,2]
[351950864,1738859445362,-500.0,0.00019178,2]
[351950866,1738859445371,-500.0,0.00019178,2]
[351950868,1738859445381,-500.0,0.00019178,2]
[351950870,1738859445390,-999.0,0.00019178,2]
[351950872,1738859445400,-999.0,0.00019178,2]
[351950874,1738859445410,-500.0,0.00019178,2]
[351950876,1738859445422,-999.0,0.00019178,2]
[351950878,1738859445432,-999.0,0.00019178,2]
[351950880,1738859445443,-500.0,0.00019178,2]
[351950882,1738859445453,-999.0,0.00019178,2]
[351950884,1738859445463,-999.0,0.00019178,2]
[351950886,1738859445473,-500.0,0.00019178,2]
[351950888,1738859445483,-562.43,0.00019178,2]
[351950890,1738859445496,-1161.95,0.00019178,2]
[351950892,1738859445505,-999.0,0.00019178,2]
[351950894,1738859445515,-999.0,0.00019178,2]
[351950896,1738859445524,-999.0,0.00019178,2]
[351950898,1738859445534,-999.0,0.00019178,2]
[351950901,1738859445545,-999.0,0.00019178,2]
[351950902,1738859445554,-999.0,0.00019178,2]
[351950903,1738859445564,-999.0,0.00019178,2]
[351950904,1738859445575,-999.0,0.00019178,2]
[351950905,1738859445585,-999.0,0.00019178,2]
[351950906,1738859445594,-999.0,0.00019178,2]
[351950907,1738859445603,-999.0,0.00019178,2]
[351950908,1738859445613,-540.46982911,0.00019178,2]
[351950909,1738859445623,-999.0,0.00019178,2]
[351950910,1738859445633,-999.0,0.00019178,2]
[351950911,1738859445643,-1428.32,0.00019178,2]
[351950912,1738859445652,-990.0,0.00019178,2]
[351950913,1738859445662,-786.81,0.00019178,2]
[351950914,1738859445672,-1157.3,0.00019178,2]
[351950915,1738859445682,-813.39,0.00019178,2]
[351950916,1738859445692,-888.81,0.00019178,2]
[351950917,1738859445702,-500.0,0.00019178,2]
[351950918,1738859445712,-500.0,0.00019178,2]
[351950919,1738859445721,-500.0,0.00019178,2]
[351950920,1738859445731,-629.32,0.00019178,2]
[351950921,1738859445741,-500.0,0.00019178,2]
[351950922,1738859445752,-500.0,0.00019178,2]
[351950923,1738859445761,-776.83,0.00019178,2]
[351950924,1738859445771,-1126.26,0.00019178,2]
[351950926,1738859445780,-500.0,0.00019178,2]
[351950927,1738859445790,-895.6,0.00019178,2]
[351950930,1738859445804,-665.98,0.00019178,2]
[351950931,1738859445814,-500.0,0.00019178,2]
[351950932,1738859445826,-500.0,0.00019178,2]
[351950933,1738859445836,-500.0,0.00019178,2]
[351950934,1738859445846,-547.66,0.00019178,2]
[351950935,1738859445856,-500.0,0.00019178,2]
[351950936,1738859445866,-983.22,0.00019178,2]
[351950937,1738859445877,-500.0,0.00019178,2]
[351950939,1738859445887,-1396.45,0.00019178,2]
[351950940,1738859445897,-704.72,0.00019178,2]
[351950941,1738859445906,-620.79,0.00019178,2]
[351950942,1738859445916,-676.27,0.00019178,2]
[351950944,1738859445926,-500.0,0.00019178,2]
[351950945,1738859445936,-421.2897835,0.00019178,2]
[351950946,1738859445945,-1850.4,0.00019178,2]
[351950947,1738859445955,-500.0,0.00019178,2]
[351950949,1738859445966,-1488.93,0.00019178,2]
[351950950,1738859445976,-1095.19,0.00019178,2]
[351950951,1738859445986,-816.62,0.00019178,2]
[351950952,1738859445995,-500.0,0.00019178,2]
[351950953,1738859446005,-1483.16,0.00019178,2]
[351950954,1738859446015,-875.74,0.00019178,2]
[351950955,1738859446025,-1421.56,0.00019178,2]
[351950956,1738859446035,-1025.41,0.00019178,2]
[351950957,1738859446044,-1334.05,0.00019178,2]
[351950958,1738859446054,-974.43,0.00019178,2]
[351950959,1738859446064,-1490.28,0.00019178,2]
[351950960,1738859446076,-684.19,0.00019178,2]
[351950962,1738859446090,-500.0,0.00019178,2]
[351950963,1738859446100,-500.0,0.00019178,2]
[351950964,1738859446110,-500.0,0.00019178,2]
[351950965,1738859446120,-3022.85,0.00019178,2]
[351950966,1738859446129,-581.98,0.00019178,2]
[351950967,1738859446139,-1515.87,0.00019178,2]
[351950969,1738859446218,-1090.5,0.00019178,2]
[351950971,1738859446228,-500.0,0.00019178,2]
[351950973,1738859446238,-1764.95,0.00019178,2]
[351950975,1738859446247,-1234.05,0.00019178,2]
[351950977,1738859446256,-421.3248944,0.00019178,2]
[351950978,1738859446266,-500.0,0.00019178,2]
[351950980,1738859446275,-668.56,0.00019178,2]
[351950981,1738859446284,-816.76,0.00019178,2]
[351950983,1738859446294,-500.0,0.00019178,2]
[351950984,1738859446304,-964.86,0.00019178,2]
[351950985,1738859446313,-978.7,0.00019178,2]
[351950986,1738859446325,-1674.88,0.00019178,2]
[351950987,1738859446335,-500.0,0.00019178,2]
[351950988,1738859446345,-500.0,0.00019178,2]
[351950989,1738859446355,-1374.73,0.00019178,2]
[351950990,1738859446365,-808.77,0.00019178,2]
[351950991,1738859446374,-2484.78,0.00019178,2]
[351950992,1738859446383,-690.31,0.00019178,2]
[351950993,1738859446393,-1252.47,0.00019178,2]
[351950994,1738859446402,-1520.16,0.00019178,2]
[351950995,1738859446412,-676.95,0.00019178,2]
[351950996,1738859446422,-574.55,0.00019178,2]
[351950997,1738859446431,-508.56,0.00019178,2]
[351950998,1738859446441,-1654.65,0.00019178,2]
[351950999,1738859446452,-1889.68,0.00019178,2]
[351951000,1738859446461,-500.0,0.00019178,2]
[351951001,1738859446470,-500.0,0.00019178,2]
[351951002,1738859446480,-1938.72,0.00019178,2]
[351951003,1738859446491,-500.0,0.00019178,2]
[351951004,1738859446501,-1436.62,0.00019178,2]
[351951005,1738859446512,-932.56,0.00019178,2]
[351951006,1738859446521,-500.0,0.00019178,2]
[351951007,1738859446531,-165.30101364,0.00019178,2]
[351951008,1738859446542,-2075.99,0.00019178,2]
[351951009,1738859446552,-544.05,0.00019178,2]
[351951010,1738859446561,-890.11,0.00019178,2]
[351951011,1738859446571,-563.32,0.00019178,2]
[351951012,1738859446584,-500.0,0.00019178,2]
[351951013,1738859446595,-812.99,0.00019178,2]
[351951014,1738859446604,-1298.3,0.00019178,2]
[351951015,1738859446614,-500.0,0.00019178,2]
[351951016,1738859446623,-1206.59,0.00019178,2]
[351951017,1738859446633,-500.0,0.00019178,2]
[351951018,1738859446643,-500.0,0.00019178,2]
[351951019,1738859446653,-782.47,0.00019178,2]
[351951020,1738859446662,-2159.33,0.00019178,2]
[351951021,1738859446671,-1257.05,0.00019178,2]
[351951022,1738859446681,-1474.21,0.00019178,2]
[351951023,1738859446690,-1385.34,0.00019178,2]
[351951025,1738859446699,-1048.46,0.00019178,2]
[351951026,1738859446709,-681.94,0.00019178,2]
[351951027,1738859446719,-723.68,0.00019178,2]
[351951028,1738859446729,-805.81,0.00019178,2]
[351951029,1738859446738,-500.0,0.00019178,2]
[351951030,1738859446749,-500.0,0.00019178,2]
[351951031,1738859446759,-500.0,0.00019178,2]
[351951032,1738859446770,-500.0,0.00019178,2]
[351951033,1738859446779,-2189.95,0.00019178,2]
[351951034,1738859446788,-1118.0,0.00019178,2]
[351951035,1738859446798,-500.0,0.00019178,2]
[351951036,1738859446808,-761.44,0.00019178,2]
[351951037,1738859446817,-2281.39,0.00019178,2]
[351951038,1738859446830,-794.79,0.00019178,2]
[351951039,1738859446841,-1933.42,0.00019178,2]
[351951040,1738859446853,-1564.18,0.00019178,2]
[351951041,1738859446866,-1740.16,0.00019178,2]
[351951042,1738859446876,-1608.25,0.00019178,2]
[351951043,1738859446886,-595.7,0.00019178,2]
[351951044,1738859446898,-500.0,0.00019178,2]
[351951045,1738859446910,-500.0,0.00019178,2]
[351951046,1738859446921,-500.0,0.00019178,2]
[351951047,1738859446932,-2013.32,0.00019178,2]
[351951048,1738859446941,-1838.73,0.00019178,2]
[351951049,1738859446952,-814.17,0.00019178,2]
[351951050,1738859446962,-1250.99,0.00019178,2]
[351951051,1738859446972,-1594.58,0.00019178,2]
[351951052,1738859446983,-1472.26,0.00019178,2]
[351951053,1738859446992,-504.52,0.00019178,2]
[351951054,1738859447003,-500.0,0.00019178,2]
[351951055,1738859447013,-2036.39,0.00019178,2]
[351951056,1738859447022,-1082.34,0.00019178,2]
[351951057,1738859447031,-1794.21,0.00019178,2]
[351951058,1738859447040,-2212.48,0.00019178,2]
[351951059,1738859447050,-1000.05,0.00019178,2]
[351951060,1738859447060,-500.0,0.00019178,2]
[351951061,1738859447070,-1982.27,0.00019178,2]
[351951062,1738859447084,-547.36,0.00019178,2]
[351951063,1738859447095,-500.0,0.00019178,2]
[351951064,1738859447105,-2169.81,0.00019178,2]
[351951065,1738859447114,-500.0,0.00019178,2]
[351951066,1738859447123,-3676.92,0.00019178,2]
[351951067,1738859447133,-1987.59,0.00019178,2]
[351951068,1738859447143,-1418.01,0.00019178,2]
[351951069,1738859447153,-3759.67,0.00019178,2]
[351951070,1738859447163,-1325.12,0.00019178,2]
[351951071,1738859447173,-1209.77,0.00019178,2]
[351951072,1738859447183,-1003.89,0.00019178,2]
[351951073,1738859447192,-1867.22,0.00019178,2]
[351951074,1738859447203,-1707.3,0.00019178,2]
[351951075,1738859447213,-737.66,0.00019178,2]
[351951076,1738859447223,-500.0,0.00019178,2]
[351951077,1738859447233,-1714.32,0.00019178,2]
[351951078,1738859447243,-2211.47,0.00019178,2]
[351951079,1738859447253,-2383.64,0.00019178,2]
[351951080,1738859447263,-3867.71,0.00019178,2]
[351951081,1738859447272,-500.0,0.00019178,2]
[351951082,1738859447282,-910.29,0.00019178,2]
[351951083,1738859447292,-2979.92,0.00019178,2]
[351951084,1738859447302,-1813.13,0.00019178,2]
[351951085,1738859447312,-1520.95,0.00019178,2]
[351951086,1738859447324,-500.0,0.00019178,2]
[351951087,1738859447335,-1070.88,0.00019178,2]
[351951088,1738859447344,-944.96,0.00019178,2]
[351951089,1738859447354,-2341.93,0.00019178,2]
[351951090,1738859447363,-1001.29,0.00019178,2]
[351951091,1738859447372,-500.0,0.00019178,2]
[351951092,1738859447381,-7025.56,0.00019178,2]
[351951093,1738859447392,-500.0,0.00019178,2]
[351951094,1738859447401,-3800.02,0.00019178,2]
[351951095,1738859447410,-1580.19,0.00019178,2]
[351951096,1738859447420,-522.19900892,0.00019178,2]
[351951097,1738859447430,-500.0,0.00019178,2]
[351951098,1738859447439,-557.56,0.00019178,2]
[351951099,1738859447449,-2114.38,0.00019178,2]
[351951100,1738859447459,-537.35,0.00019178,2]
[351951101,1738859447469,-500.0,0.00019178,2]
[351951102,1738859447478,-1278.48,0.00019178,2]
[351951103,1738859447489,-2047.65,0.00019178,2]
[351951104,1738859447498,-3151.03,0.00019178,2]
[351951105,1738859447512,-500.0,0.00019178,2]
[351951106,1738859447522,-500.0,0.00019178,2]
[351951107,1738859447533,-544.83539212,0.00019178,2]
[351951108,1738859447544,-1608.0,0.00019178,2]
[351951109,1738859447555,-500.0,0.00019178,2]
[351951110,1738859447566,-910.08,0.00019178,2]
[351951111,1738859447581,-503.48323494,0.00019178,2]
[351951112,1738859447592,-2786.69,0.00019178,2]
[351951113,1738859447601,-3611.73,0.00019178,2]
[351951114,1738859447611,-2127.85,0.00019178,2]
[351951115,1738859447620,-1812.48,0.00019178,2]
[351951116,1738859447630,-500.0,0.00019178,2]
[351951117,1738859447639,-3376.65,0.00019178,2]
[351951118,1738859447648,-2087.88,0.00019178,2]
[351951119,1738859447658,-3136.7,0.00019178,2]
[351951120,1738859447669,-2643.85,0.00019178,2]
[351951121,1738859447679,-584.99,0.00019178,2]
[351951122,1738859447691,-1531.86,0.00019178,2]
[351951123,1738859447702,-500.0,0.00019178,2]
[351951124,1738859447712,-500.0,0.00019178,2]
[351951125,1738859447722,-500.0,0.00019178,2]
[351951126,1738859447732,-771.7,0.00019178,2]
[351951127,1738859447742,-1119.67,0.00019178,2]
[351951128,1738859447753,-1997.29,0.00019178,2]
[351951129,1738859447764,-801.59,0.00019178,2]
[351951130,1738859447774,-500.0,0.00019178,2]
[351951131,1738859447783,-509.43,0.00019178,2]
[351951132,1738859447793,-4454.3,0.00019178,2]
[351951133,1738859447803,-2508.19,0.00019178,2]
[351951134,1738859447813,-500.0,0.00019178,2]
[351951135,1738859447827,-921.93,0.00019178,2]
[351951136,1738859447838,-2252.27,0.00019178,2]
[351951137,1738859447848,-1506.19,0.00019178,2]
[351951138,1738859447857,-500.0,0.00019178,2]
[351951139,1738859447867,-549.57,0.00019178,2]
[351951140,1738859447877,-3741.69,0.00019178,2]
[351951141,1738859447887,-604.81,0.00019178,2]
[351951142,1738859447900,-651.33,0.00019178,2]
[351951143,1738859447911,-500.0,0.00019178,2]
[351951144,1738859447922,-500.0,0.00019178,2]
[351951145,1738859447933,-1470.46,0.00019178,2]
[351951146,1738859447943,-739.64,0.00019178,2]
[351951147,1738859447953,-500.0,0.00019178,2]
[351951148,1738859447963,-2385.66,0.00019178,2]
[351951149,1738859447974,-402.91,0.00019178,2]
[351951150,1738859447984,-1808.68,0.00019178,2]
[351951151,1738859447996,-2039.7,0.00019178,2]
[351951152,1738859448008,-1592.44,0.00019178,2]
[351951153,1738859448021,-898.23,0.00019178,2]
[351951154,1738859448033,-1803.78,0.00019178,2]
[351951155,1738859448043,-1173.8,0.00019178,2]
[351951156,1738859448054,-500.0,0.00019178,2]
[351951157,1738859448065,-798.24,0.00019178,2]
[351951158,1738859448080,-1904.48,0.00019178,2]
[351951159,1738859448091,-500.0,0.00019178,2]
[351951160,1738859448102,-638.5,0.00019178,2]
[351951161,1738859448112,-2776.48,0.00019178,2]
[351951162,1738859448122,-744.29,0.00019178,2]
[351951163,1738859448133,-500.0,0.00019178,2]
[351951164,1738859448144,-2043.7,0.00019178,2]
[351951165,1738859448155,-1021.47,0.00019178,2]
[351951166,1738859448165,-1589.04,0.00019178,2]
[351951167,1738859448176,-500.0,0.00019178,2]
[351951168,1738859448186,-753.25,0.00019178,2]
[351951169,1738859448196,-2003.9,0.00019178,2]
[351951170,1738859448208,-967.67,0.00019178,2]
[351951171,1738859448219,-623.17,0.00019178,2]
[351951172,1738859448229,-871.33,0.00019178,2]
[351951173,1738859448240,-527.62095723,0.00019178,2]
[351951174,1738859448250,-500.0,0.00019178,2]
[351951175,1738859448262,-500.0,0.00019178,2]
[351951176,1738859448274,-4639.69,0.00019178,2]
[351951177,1738859448286,-500.0,0.00019178,2]
[351951178,1738859448298,-500.0,0.00019178,2]
[351951179,1738859448310,-3441.14,0.00019178,2]
[351951180,1738859448321,-665.34,0.00019178,2]
[351951181,1738859448338,-500.0,0.00019178,2]
[351951182,1738859448351,-2365.63,0.00019178,2]
[351951183,1738859448363,-1616.55,0.00019178,2]
[351951184,1738859448375,-500.0,0.00019178,2]
[351951185,1738859448387,-1190.26,0.00019178,2]
[351951186,1738859448398,-500.0,0.00019178,2]
[351951187,1738859448409,-500.0,0.00019178,2]
[351951188,1738859448419,-1884.39,0.00019178,2]
[351951189,1738859448431,-1202.15,0.00019178,2]
[351951190,1738859448441,-500.0,0.00019178,2]
[351951191,1738859448451,-2080.1,0.00019178,2]
[351951192,1738859448461,-2248.12,0.00019178,2]
[351951193,1738859448471,-1721.01,0.00019178,2]
[351951194,1738859448482,-500.0,0.00019178,2]
[351951195,1738859448494,-500.0,0.00019178,2]
[351951196,1738859448507,-1481.87,0.00019178,2]
[351951197,1738859448518,-957.01,0.00019178,2]
[351951198,1738859448529,-1117.8,0.00019178,2]
[351951199,1738859448541,-2168.42,0.00019178,2]
[351951200,1738859448552,-1392.78,0.00019178,2]
[351951201,1738859448563,-500.0,0.00019178,2]
[351951202,1738859448573,-500.0,0.00019178,2]
[351951203,1738859448584,-1253.66,0.00019178,2]
[351951204,1738859448595,-1415.2,0.00019178,2]
[351951205,1738859448607,-150.0,0.00019178,2]
[351951206,1738859448618,-381.42,0.00019178,2]
[351951207,1738859448629,-692.05468298,0.00019205,5]
[351951208,1738859448640,-150.0,0.0001922,2]
[351951209,1738859448650,-356.38,0.00019242,30]
[351951210,1738859448661,-113189.59441957,0.00019252,2]
[351951211,1738859448672,-295.03731476,0.0001926,5]
[351951212,1738859448683,-150.0,0.00019272,2]
[351951213,1738859448693,-1000.0,0.00019283,2]
[351951214,1738859448705,-692.05468298,0.00019288,5]
[351951215,1738859448715,-150.0,0.00019293,2]
[351951216,1738859448727,-576.70508051,0.00019298,2]
[351951217,1738859448741,-150.0,0.00019299,2]
[351951218,1738859448762,-1230.8773456,0.00019306,2]
[351951219,1738859448775,-3825.179088,0.00019306,2]
[351951220,1738859448786,-307.7403181,0.00019306,2]
[351951221,1738859448799,-4647.2396586,0.00019306,2]
[351951222,1738859448812,-250000.0,0.0001931,2]
[351951223,1738859448823,-1051.8514289,0.0001931,2]
[351951224,1738859448838,-1059.26,0.00019314,2]
[351951225,1738859448850,-153.282885,0.00019315,3]
[351951226,1738859448863,-152.409931,0.00019315,3]
[351951227,1738859448875,-508.9,0.00019315,3]
[351951228,1738859448886,-500.0,0.00019315,3]
[351951229,1738859448897,-500.0,0.00019315,3]
[351951230,1738859448909,-500.0,0.00019315,3]
[351951231,1738859448920,-500.0,0.00019315,3]
[351951232,1738859448933,-500.0,0.00019315,3]
[351951233,1738859448950,-513.58,0.00019315,3]
[351951234,1738859448962,-544.1,0.00019315,3]
[351951235,1738859448973,-500.0,0.00019315,3]
[351951236,1738859448983,-525.98,0.00019315,3]
[351951237,1738859448994,-602.48,0.00019315,3]
[351951238,1738859449004,-882.37,0.00019315,3]
[351951239,1738859449016,-500.0,0.00019315,3]
[351951240,1738859449027,-419.01127141,0.00019315,3]
[351951241,1738859449037,-500.0,0.00019315,3]
[351951242,1738859449048,-500.0,0.00019315,3]
[351951243,1738859449060,-500.0,0.00019315,3]
[351951244,1738859449071,-500.0,0.00019315,3]
[351951245,1738859449088,-500.0,0.00019315,3]
[351951246,1738859449099,-500.0,0.00019315,3]
[351951247,1738859449110,-500.0,0.00019315,3]
[351951248,1738859449122,-500.0,0.00019315,3]
[351951249,1738859449133,-599.54,0.00019315,3]
[351951250,1738859449144,-500.0,0.00019315,2]
[351951251,1738859449156,-500.0,0.00019315,3]
[351951252,1738859449168,-537.36,0.00019315,3]
[351951253,1738859449179,-500.0,0.00019315,3]
[351951254,1738859449190,-500.0,0.00019315,3]
[351951255,1738859449202,-500.0,0.00019315,3]
[351951256,1738859449213,-562.99,0.00019315,3]
[351951257,1738859449224,-300.0,0.00019315,3]
[351951258,1738859449235,-500.0,0.00019315,3]
[351951259,1738859449247,-500.0,0.00019315,3]
[351951260,1738859449257,-500.0,0.00019315,3]
[351951261,1738859449268,-1322.08,0.00019315,3]
[351951262,1738859449279,-500.0,0.00019315,3]
[351951263,1738859449290,-500.0,0.00019315,3]
[351951264,1738859449301,-500.0,0.00019315,3]
[351951265,1738859449313,-500.0,0.00019315,3]
[351951266,1738859449323,-500.0,0.00019315,3]
[351951267,1738859449335,-500.0,0.00019315,3]
[351951268,1738859449345,-242.87518274,0.00019315,3]
[351951269,1738859449356,-500.0,0.00019315,3]
[351951270,1738859449366,-500.0,0.00019315,3]
[351951271,1738859449376,-500.0,0.00019315,3]
[351951272,1738859449386,-500.0,0.00019315,3]
[351951273,1738859449396,-627.69,0.00019315,3]
[351951274,1738859449406,-500.0,0.00019315,3]
[351951275,1738859449416,-500.0,0.00019315,3]
[351951276,1738859449427,-500.0,0.00019315,3]
[351951277,1738859449437,-500.0,0.00019315,3]
[351951278,1738859449447,-939.79,0.00019315,3]
[351951279,1738859449456,-500.0,0.00019315,3]
[351951280,1738859449466,-500.0,0.00019315,3]
[351951281,1738859449476,-1087.67,0.00019315,3]
[351951282,1738859449485,-500.0,0.00019315,3]
[351951283,1738859449497,-500.0,0.00019315,3]
[351951284,1738859449507,-500.0,0.00019315,3]
[351951285,1738859449517,-500.0,0.00019315,3]
[351951286,1738859449526,-500.0,0.00019315,3]
[351951287,1738859449538,-598.26,0.00019315,3]
[351951288,1738859449547,-500.0,0.00019315,3]
[351951289,1738859449557,-500.0,0.00019315,3]
[351951290,1738859449567,-500.0,0.00019315,3]
[351951291,1738859449579,-500.0,0.00019315,3]
[351951292,1738859449589,-500.0,0.00019315,3]
[351951293,1738859449599,-500.0,0.00019315,3]
[351951294,1738859449609,-500.0,0.00019315,3]
[351951295,1738859449618,-500.0,0.00019315,3]
[351951296,1738859449628,-500.0,0.00019315,3]
[351951297,1738859449639,-500.0,0.00019315,3]
[351951298,1738859449648,-743.16,0.00019315,3]
[351951299,1738859449658,-1053.34,0.00019315,3]
[351951300,1738859449669,-500.0,0.00019315,3]
[351951301,1738859449680,-500.0,0.00019315,3]
[351951302,1738859449690,-500.0,0.00019315,3]
[351951303,1738859449701,-500.0,0.00019315,3]
[351951304,1738859449711,-500.0,0.00019315,3]
[351951305,1738859449722,-500.0,0.00019315,3]
[351951306,1738859449733,-500.0,0.00019315,3]
[351951307,1738859449743,-500.0,0.00019315,3]
[351951308,1738859449753,-644.09,0.00019315,3]
[351951309,1738859449764,-500.0,0.00019315,3]
[351951310,1738859449775,-631.90445912,0.00019315,3]
[351951311,1738859449788,-953.16,0.00019315,3]
[351951312,1738859449800,-500.0,0.00019315,3]
[351951313,1738859449811,-500.0,0.00019315,3]
[351951314,1738859449821,-505.32430455,0.00019315,3]
[351951315,1738859449834,-1101.73,0.00019315,3]
[351951316,1738859449844,-500.0,0.00019315,3]
[351951317,1738859449854,-670.07,0.00019315,3]
[351951318,1738859449865,-500.0,0.00019315,3]
[351951319,1738859449875,-500.0,0.00019315,3]
[351951320,1738859449886,-500.0,0.00019315,3]
[351951321,1738859449896,-500.0,0.00019315,3]
[351951322,1738859449906,-500.0,0.00019315,3]
[351951323,1738859449917,-500.0,0.00019315,3]
[351951324,1738859449927,-517.59,0.00019315,3]
[351951325,1738859449938,-500.0,0.00019315,3]
[351951326,1738859449949,-500.0,0.00019315,3]